{"text_format":"3","workbook":"xlsx","n_sheets":1,"sheets":["Report"],"not_rendered":{"defined_names":1},"read":"whole","date_system":"1900"}

{"sheet":"Report","index":0,"n_rows":18,"n_cols":34,"rows_kept":18}
["Period","Authority","LA type","WDA for WCA","Region","Nation","Level","Root Facility Type ","Root Waste stream type","Output process Type","Parent Facility Type","Parent Facility Name","Parent Facility Address","Parent Facility Postcode","Parent Facility Licence","Via MBT?","Via Incineration","Material","Material Group","Tonnes","Recycling Type","Recycling Category","Recycling Group","Within definition of household recycling","Suitable for WfH?","Collection Default HH/NonHHld Factor","User-defined HH/NonHHld Source split","Collection Default WfH/WnfH Factor","User-defined WfH/WnfH Source split","Tonnage to count for total household recycling","Tonnage of household dry recycling ","Tonnage of household organic recycling ","Tonnage of household waste - preparation for reuse","Tonnage to count in WfH Numerator"]
["Jan 20 - Mar 20","Hastings Borough Council","Collection","East Sussex County Council","South East","England",3,"Materials recovery facility (qu58)","Comingled recyclate","Dry recyclate","Reprocessor - recycling (qu19)","Viridor Polymer Recycling Ltd","Gerrard Place, Off Gillibrands Road, East Gillbrands, Skelmersdale, Lancashire","WN8 9SF","54473 / SP3593ZB",false,false,"HDPE [2]","Plastic",34.35,"Recycling","Via MRF","All Other",true,true,{"v":1,"d":"100.00%"},null,{"v":1,"d":"100.00%"},null,{"$f":"IF(X2=TRUE,T2*IF(AA2<>\"\",AA2,Z2),\"\")","v":34.35},{"$f":"IF(U2=\"Recycling\",AD2,\"\")","v":34.35},{"$f":"IF(U2=\"Composting\",AD2,\"\")","v":""},{"$f":"IF(U2=\"Reuse\",AD2,\"\")","v":""},{"$f":"IF(Y2=TRUE,T2*IF(AC2<>\"\",AC2,AB2),\"\")","v":34.35}]
["Jan 20 - Mar 20","Hastings Borough Council","Collection","East Sussex County Council","South East","England",3,"Materials recovery facility (qu58)","Comingled recyclate","Dry recyclate","Reprocessor - recycling (qu19)","Viridor Polymer Recycling Ltd","Gerrard Place, Off Gillibrands Road, East Gillbrands, Skelmersdale, Lancashire","WN8 9SF","54473 / SP3593ZB",false,false,"PET [1]","Plastic",48.61,"Recycling","Via MRF","All Other",true,true,{"v":1,"d":"100.00%"},null,{"v":1,"d":"100.00%"},null,48.61,48.61,"","",48.61]
["Jan 20 - Mar 20","Hastings Borough Council","Collection","East Sussex County Council","South East","England",3,"Materials recovery facility (qu58)","Comingled recyclate","Dry recyclate","Reprocessor - recycling (qu19)","Plasrecycle Limited","Former Hunter Plastics Site, Nathan Way, London","SE28 0AB","104667 / KB3837RZ",false,false,"Mixed Plastics","Plastic",41.92,"Recycling","Via MRF","All Other",true,true,{"v":1,"d":"100.00%"},null,{"v":1,"d":"100.00%"},null,41.92,41.92,"","",41.92]
["Jan 20 - Mar 20","Hastings Borough Council","Collection","East Sussex County Council","South East","England",4,"Materials recovery facility (qu58)","Comingled recyclate","Dry recyclate","Reprocessor - recycling (qu19)","Viridor Waste Kent Ltd","Royal Eagle Close, Medway City Estate, Rochester, Kent","ME2 4NF","10023 / TP3495HH",false,false,"Mixed Plastics","Plastic",84.95,"Recycling","Via MRF","All Other",true,true,{"v":1,"d":"100.00%"},null,{"v":1,"d":"100.00%"},null,84.95,84.95,"","",84.95]
["Apr 20 - Jun 20","Hastings Borough Council","Collection","East Sussex County Council","South East","England",4,"Materials recovery facility (qu58)","Comingled recyclate","Dry recyclate","Reprocessor - recycling (qu19)","Viridor Waste Kent Ltd","Royal Eagle Close, Medway City Estate, Rochester, Kent","ME2 4NF","10023 / TP3495HH",false,false,"Mixed Plastics","Plastic",97.9,"Recycling","Via MRF","All Other",true,true,{"v":1,"d":"100.00%"},null,{"v":1,"d":"100.00%"},null,{"v":97.9,"d":"97.90"},{"v":97.9,"d":"97.90"},"","",{"v":97.9,"d":"97.90"}]
["Apr 20 - Jun 20","Hastings Borough Council","Collection","East Sussex County Council","South East","England",3,"Materials recovery facility (qu58)","Comingled recyclate","Dry recyclate","Reprocessor - recycling (qu19)","Viridor Polymer Recycling Ltd","Gerrard Place, Off Gillibrands Road, East Gillbrands, Skelmersdale, Lancashire","WN8 9SF","54473 / SP3593ZB",false,false,"HDPE [2]","Plastic",46.01,"Recycling","Via MRF","All Other",true,true,{"v":1,"d":"100.00%"},null,{"v":1,"d":"100.00%"},null,46.01,46.01,"","",46.01]
["Apr 20 - Jun 20","Hastings Borough Council","Collection","East Sussex County Council","South East","England",3,"Materials recovery facility (qu58)","Comingled recyclate","Dry recyclate","Reprocessor - recycling (qu19)","Viridor Polymer Recycling Ltd","Gerrard Place, Off Gillibrands Road, East Gillbrands, Skelmersdale, Lancashire","WN8 9SF","54473 / SP3593ZB",false,false,"PET [1]","Plastic",57.18,"Recycling","Via MRF","All Other",true,true,{"v":1,"d":"100.00%"},null,{"v":1,"d":"100.00%"},null,57.18,57.18,"","",57.18]
["Apr 20 - Jun 20","Hastings Borough Council","Collection","East Sussex County Council","South East","England",3,"Materials recovery facility (qu58)","Comingled recyclate","Dry recyclate","Reprocessor - recycling (qu19)","Plasrecycle Limited","Former Hunter Plastics Site, Nathan Way, London","SE28 0AB","104667 / KB3837RZ",false,false,"Mixed Plastics","Plastic",52.83,"Recycling","Via MRF","All Other",true,true,{"v":1,"d":"100.00%"},null,{"v":1,"d":"100.00%"},null,52.83,52.83,"","",52.83]
["Jul 20 - Sep 20","Hastings Borough Council","Collection","East Sussex County Council","South East","England",3,"Materials recovery facility (qu58)","Comingled recyclate","Dry recyclate","Reprocessor - recycling (qu19)","Viridor Polymer Recycling Ltd","Gerrard Place, Off Gillibrands Road, East Gillbrands, Skelmersdale, Lancashire","WN8 9SF","54473 / SP3593ZB",false,false,"HDPE [2]","Plastic",44.1,"Recycling","Via MRF","All Other",true,true,{"v":1,"d":"100.00%"},null,{"v":1,"d":"100.00%"},null,{"v":44.1,"d":"44.10"},{"v":44.1,"d":"44.10"},"","",{"v":44.1,"d":"44.10"}]
["Jul 20 - Sep 20","Hastings Borough Council","Collection","East Sussex County Council","South East","England",3,"Materials recovery facility (qu58)","Comingled recyclate","Dry recyclate","Reprocessor - recycling (qu19)","Viridor Polymer Recycling Ltd","Gerrard Place, Off Gillibrands Road, East Gillbrands, Skelmersdale, Lancashire","WN8 9SF","54473 / SP3593ZB",false,false,"PET [1]","Plastic",63.9,"Recycling","Via MRF","All Other",true,true,{"v":1,"d":"100.00%"},null,{"v":1,"d":"100.00%"},null,{"v":63.9,"d":"63.90"},{"v":63.9,"d":"63.90"},"","",{"v":63.9,"d":"63.90"}]
["Jul 20 - Sep 20","Hastings Borough Council","Collection","East Sussex County Council","South East","England",3,"Materials recovery facility (qu58)","Comingled recyclate","Dry recyclate","Reprocessor - recycling (qu19)","Monoworld Ltd","Monoworld Recycling Facility, Rushden Road, Sharnbrook, Bedford, Bedfordshire","MK44 1NB","75205 / DP3890SL",false,false,"Mixed Plastics","Plastic",55.5,"Recycling","Via MRF","All Other",true,true,{"v":1,"d":"100.00%"},null,{"v":1,"d":"100.00%"},null,{"v":55.5,"d":"55.50"},{"v":55.5,"d":"55.50"},"","",{"v":55.5,"d":"55.50"}]
["Jul 20 - Sep 20","Hastings Borough Council","Collection","East Sussex County Council","South East","England",4,"Materials recovery facility (qu58)","Comingled recyclate","Dry recyclate","Reprocessor - recycling (qu19)","Viridor Waste Kent Ltd","Royal Eagle Close, Medway City Estate, Rochester, Kent","ME2 4NF","10023 / TP3495HH",false,false,"Mixed Plastics","Plastic",93,"Recycling","Via MRF","All Other",true,true,{"v":1,"d":"100.00%"},null,{"v":1,"d":"100.00%"},null,{"v":93,"d":"93.00"},{"v":93,"d":"93.00"},"","",{"v":93,"d":"93.00"}]
["Oct 20 - Dec 20","Hastings Borough Council","Collection","East Sussex County Council","South East","England",4,"Materials recovery facility (qu58)","Comingled recyclate","Dry recyclate","Reprocessor - recycling (qu19)","Viridor Waste Kent Ltd","Royal Eagle Close, Medway City Estate, Rochester, Kent","ME2 4NF","10023 / TP3495HH",false,false,"Mixed Plastics","Plastic",96.7,"Recycling","Via MRF","All Other",true,true,{"v":1,"d":"100.00%"},null,{"v":1,"d":"100.00%"},null,{"v":96.7,"d":"96.70"},{"v":96.7,"d":"96.70"},"","",{"v":96.7,"d":"96.70"}]
["Oct 20 - Dec 20","Hastings Borough Council","Collection","East Sussex County Council","South East","England",3,"Materials recovery facility (qu58)","Comingled recyclate","Dry recyclate","Reprocessor - recycling (qu19)","Viridor Polymer Recycling Ltd","Gerrard Place, Off Gillibrands Road, East Gillbrands, Skelmersdale, Lancashire","WN8 9SF","54473 / SP3593ZB",false,false,"HDPE [2]","Plastic",49.4,"Recycling","Via MRF","All Other",true,true,{"v":1,"d":"100.00%"},null,{"v":1,"d":"100.00%"},null,{"v":49.4,"d":"49.40"},{"v":49.4,"d":"49.40"},"","",{"v":49.4,"d":"49.40"}]
["Oct 20 - Dec 20","Hastings Borough Council","Collection","East Sussex County Council","South East","England",3,"Materials recovery facility (qu58)","Comingled recyclate","Dry recyclate","Reprocessor - recycling (qu19)","Viridor Polymer Recycling Ltd","Gerrard Place, Off Gillibrands Road, East Gillbrands, Skelmersdale, Lancashire","WN8 9SF","54473 / SP3593ZB",false,false,"PET [1]","Plastic",48.96,"Recycling","Via MRF","All Other",true,true,{"v":1,"d":"100.00%"},null,{"v":1,"d":"100.00%"},null,48.96,48.96,"","",48.96]
["Oct 20 - Dec 20","Hastings Borough Council","Collection","East Sussex County Council","South East","England",3,"Materials recovery facility (qu58)","Comingled recyclate","Dry recyclate","Reprocessor - recycling (qu19)","Monoworld Ltd","Monoworld Recycling Facility, Rushden Road, Sharnbrook, Bedford, Bedfordshire","MK44 1NB","75205 / DP3890SL",false,false,"Mixed Plastics","Plastic",47.76,"Recycling","Via MRF","All Other",true,true,{"v":1,"d":"100.00%"},null,{"v":1,"d":"100.00%"},null,47.76,47.76,"","",47.76]
[{"$nulls":33},{"$f":"SUM(AH2:AH17)","v":963.07}]